bitfinex/quotes_BTCUSD_20240723
["timestamp","ask_amount","ask_price","bid_price","bid_amount"]
[1721723696785,0.149204,67022.0,67019.0,0.002794]
[1721723696985,0.149204,67022.0,67019.0,0.008]
[1721723697196,0.149204,67022.0,67018.0,0.14701991]
[1721723697407,0.149204,67022.0,67019.0,0.002794]
[1721723697599,0.149207,67021.0,67018.0,0.14701991]
[1721723698194,0.149204,67022.0,67018.0,0.14701991]
[1721723698695,0.216,67025.0,67023.0,0.00475771]
[1721723698900,0.216,67025.0,67024.0,0.4476]
[1721723699104,0.374259,67034.0,67023.0,0.30097862]
[1721723699105,0.149191,67028.0,67023.0,0.30097862]
[1721723699308,0.11229743,67027.0,67023.0,0.15177762]
[1721723699521,0.29837,67031.0,67026.0,0.0605]
[1721723699734,0.11229643,67030.0,67026.0,0.0605]
[1721723699918,0.11229643,67030.0,67026.0,0.209695]
[1721723699919,0.11229643,67029.0,67026.0,0.209695]
[1721723700124,0.11229643,67029.0,67026.0,0.0605]
[1721723700262,0.11229643,67028.0,67027.0,0.45016462]
[1721723700465,0.216,67032.0,67027.0,0.45016462]
[1721723700466,0.11229643,67031.0,67027.0,0.45016462]
[1721723700677,0.11229643,67031.0,67030.0,0.75068971]
[1721723700886,0.17464481,67040.0,67039.0,0.30032371]
[1721723701098,0.17464481,67040.0,67039.0,0.21777762]
[1721723701322,0.17464481,67040.0,67039.0,0.66527662]
[1721723701679,0.17464481,67040.0,67039.0,0.96360962]
[1721723702283,0.17464481,67040.0,67039.0,0.66527662]
[1721723702487,0.17464481,67040.0,67039.0,0.36694362]
[1721723703152,0.17464481,67040.0,67039.0,0.97760962]
[1721723703290,0.17464481,67040.0,67039.0,0.96360962]
[1721723703492,0.17464481,67040.0,67039.0,0.36218591]
[1721723703690,0.17464481,67040.0,67039.0,0.16101991]
[1721723703933,0.62213781,67040.0,67039.0,0.014]
[1721723704133,1.08881492,67040.0,67039.0,0.014]
[1721723704329,1.08881492,67040.0,67039.0,0.025]
[1721723704733,0.49215692,67040.0,67039.0,0.025]
[1721723704930,0.49164706,67040.0,67039.0,0.025]
[1721723705106,0.78997606,67040.0,67039.0,0.025]
[1721723705926,0.34248306,67040.0,67039.0,0.025]
[1721723706127,0.49164706,67040.0,67039.0,0.025]
[1721723706327,0.49164706,67040.0,67035.0,0.149175]
[1721723706328,0.34248306,67040.0,67035.0,0.29835]
[1721723706575,0.17464481,67040.0,67039.0,0.014]
[1721723706907,0.17464481,67040.0,67039.0,0.149166]
[1721723706908,0.23128634,67040.0,67039.0,0.149166]
[1721723707115,0.17464481,67040.0,67039.0,0.149166]
[1721723707343,0.17464481,67040.0,67039.0,0.453499]
[1721723708379,0.17464481,67040.0,67039.0,0.155166]
[1721723709477,0.17464481,67040.0,67039.0,0.149166]
[1721723709681,0.17464481,67040.0,67039.0,0.97750962]
[1721723710022,0.17464481,67040.0,67039.0,0.96350962]
[1721723710228,0.17464481,67040.0,67039.0,0.66517662]
[1721723710428,0.17464481,67040.0,67039.0,0.67917662]
[1721723710895,0.17464481,67040.0,67039.0,0.97750962]
[1721723711230,0.17464481,67040.0,67039.0,1.65577562]
[1721723711429,0.17464481,67040.0,67039.0,1.77877562]
[1721723711633,0.17464481,67040.0,67039.0,1.87877562]
[1721723711833,0.17464481,67040.0,67039.0,2.22710862]
[1721723712141,0.17464481,67040.0,67039.0,2.59560862]
[1721723712574,0.17464481,67040.0,67039.0,2.49560862]
[1721723712918,0.17464481,67040.0,67039.0,2.65438238]
[1721723713060,0.17464481,67040.0,67039.0,2.66838238]
[1721723713265,0.10804481,67040.0,67039.0,2.55438238]
[1721723713697,0.10804481,67040.0,67039.0,2.56838238]
[1721723713892,0.4696,67068.0,67067.0,0.15386171]
[1721723714109,1.79731531,67075.0,67074.0,0.149089]
[1721723714110,0.65693655,67075.0,67074.0,0.149089]
[1721723714262,0.4696,67080.0,67064.0,0.0813]
[1721723714263,0.07348942,67078.0,67072.0,0.00475771]
[1721723714663,0.149087,67075.0,67072.0,0.00475771]
[1721723714869,0.298165,67077.0,67072.0,0.00475771]
[1721723715071,0.149087,67075.0,67072.0,0.00475771]
[1721723715276,0.298165,67077.0,67072.0,0.00475771]
[1721723715585,0.149089,67074.0,67073.0,0.14701991]
[1721723715858,0.216,67074.0,67067.0,0.00475771]
[1721723716031,0.216,67074.0,67068.0,0.44522191]
[1721723716266,0.216,67074.0,67068.0,0.14701991]
[1721723716267,0.07348942,67071.0,67068.0,0.14701991]
[1721723716473,0.508506,67068.0,67067.0,0.014]
[1721723716678,0.14912,67060.0,67059.0,0.00475771]
[1721723716878,0.28948942,67064.0,67059.0,0.15177762]
[1721723717165,0.28948942,67064.0,67055.0,1.12]
[1721723717380,0.43861842,67056.0,67055.0,0.737]
[1721723717579,0.43861842,67056.0,67047.0,0.1]
[1721723717580,0.28948942,67056.0,67047.0,0.00475771]
[1721723717782,0.28948942,67056.0,67048.0,0.14701991]
[1721723717783,0.07348942,67049.0,67048.0,0.14701991]
[1721723717981,0.22263342,67049.0,67048.0,0.14701991]
[1721723718195,0.298294,67048.0,67042.0,0.00475771]
[1721723718402,0.28948942,67049.0,67035.0,0.38775771]
[1721723718403,0.07348942,67041.0,67035.0,0.38775771]
[1721723718644,0.07348942,67041.0,67033.0,0.737]
[1721723718645,0.447534,67034.0,67033.0,0.737]
[1721723718852,0.74589,67034.0,67033.0,0.737]
[1721723719097,1.044246,67034.0,67033.0,0.737]
[1721723720534,0.74589,67034.0,67033.0,0.737]
[1721723721170,1.094246,67034.0,67033.0,0.3685]
[1721723722025,1.16773542,67034.0,67033.0,0.3685]
[1721723722243,1.21773542,67034.0,67033.0,0.3685]
[1721723722370,1.16773542,67034.0,67033.0,0.3685]
[1721723722625,1.260246,67034.0,67033.0,0.3685]
[1721723722828,1.360246,67034.0,67033.0,0.3685]
[1721723723035,1.310246,67034.0,67033.0,0.3715]
[1721723723445,1.37897771,67034.0,67033.0,0.3685]
[1721723724082,1.42897771,67034.0,67033.0,0.3685]
[1721723724465,1.48927771,67034.0,67033.0,0.3685]
[1721723725149,1.48927771,67034.0,67016.0,0.01399771]
[1721723725150,0.05,67028.0,67016.0,0.00924]
[1721723725394,0.447646,67017.0,67016.0,0.00924]
[1721723725621,0.746077,67017.0,67016.0,0.00924]
[1721723726303,0.447646,67017.0,67016.0,0.00924]
[1721723726790,0.746077,67017.0,67016.0,0.01524]
[1721723727028,0.746077,67017.0,67016.0,0.00924]
[1721723727265,0.746077,67017.0,67016.0,0.02324]
[1721723728807,0.746077,67017.0,67016.0,0.02283307]
[1721723729082,1.182908,67017.0,67016.0,0.02283307]
[1721723729577,1.22815029,67017.0,67016.0,0.02283307]
[1721723730087,1.22815029,67017.0,67014.0,0.00924]
[1721723730088,0.84134229,67015.0,67014.0,0.00924]
[1721723730321,0.19446629,67013.0,67012.0,0.00924]
[1721723730568,1.31927815,67013.0,67012.0,0.00924]
[1721723731083,1.46742096,67013.0,67012.0,0.00924]
[1721723731354,1.55818129,67013.0,67012.0,0.00924]
[1721723731598,1.108471,67013.0,67012.0,0.00924]
[1721723732119,1.15371329,67013.0,67012.0,0.00924]
[1721723732400,1.28241329,67013.0,67012.0,0.00924]
[1721723732618,1.28241329,67013.0,67008.0,0.00924]
[1721723732619,1.310634,67009.0,67008.0,0.00924]
[1721723732839,1.260634,67009.0,67008.0,0.00924]
[1721723733840,1.260634,67009.0,67003.0,0.00924]
[1721723733841,0.564467,67009.0,67003.0,0.00924]
[1721723734047,1.11820042,67004.0,67003.0,0.00924]
[1721723734247,0.514467,67009.0,67003.0,0.00924]
[1721723734248,0.216,67009.0,67003.0,0.00924]
[1721723734455,0.004,67009.0,67006.0,0.00475771]
[1721723734653,0.004,67009.0,67006.0,0.15177762]
[1721723734860,0.004,67009.0,67008.0,0.53296371]
[1721723735206,0.004,67009.0,67008.0,1.46432562]
[1721723735855,0.004,67009.0,67008.0,1.86279662]
[1721723736280,0.4696,67025.0,67024.0,0.29615771]
[1721723736499,0.4696,67025.0,67024.0,0.31697762]
[1721723736698,0.4696,67025.0,67024.0,0.46617762]
[1721723737227,0.4696,67025.0,67024.0,0.28921991]
[1721723737428,0.4696,67025.0,67024.0,0.29397762]
[1721723737837,0.4696,67025.0,67024.0,0.44317762]
[1721723738182,0.4706,67025.0,67024.0,0.74157762]
[1721723738377,0.4706,67025.0,67024.0,1.03997762]
[1721723738515,0.4706,67025.0,67024.0,1.36137762]
[1721723738740,0.001,67025.0,67024.0,1.36137762]
[1721723738940,0.001,67025.0,67024.0,1.51137762]
[1721723739149,0.001,67025.0,67024.0,1.85977762]
[1721723739345,0.745777,67044.0,67043.0,0.00475771]
[1721723739571,0.27,67051.0,67036.0,0.00475771]
[1721723739784,0.745855,67037.0,67036.0,0.15177762]
[1721723739986,0.745855,67037.0,67033.0,0.3685]
[1721723739987,0.74589,67034.0,67033.0,0.3685]
[1721723740211,0.3468,67043.0,67033.0,0.3685]
[1721723740212,0.149174,67036.0,67033.0,0.3685]
[1721723740430,0.568318,67043.0,67037.0,0.002794]
[1721723740641,0.298306,67046.0,67038.0,0.14701991]
[1721723740797,0.27,67052.0,67042.0,0.00475771]
[1721723740798,0.568276,67052.0,67042.0,0.00475771]
[1721723741011,0.149158,67043.0,67042.0,0.00475771]
[1721723741169,0.447474,67043.0,67042.0,0.00475771]
[1721723741370,0.74579,67043.0,67042.0,0.00475771]
[1721723741674,0.149158,67043.0,67042.0,0.00475771]
[1721723741922,0.07348942,67049.0,67042.0,0.00475771]
[1721723742128,0.149154,67045.0,67042.0,0.00475771]
[1721723742387,0.49093655,67061.0,67046.0,0.00475771]
[1721723742388,0.298285,67050.0,67046.0,0.00475771]
[1721723742543,0.149149,67047.0,67046.0,0.00475771]
[1721723742721,0.14914,67051.0,67046.0,0.00475771]
[1721723742919,0.298268,67054.0,67046.0,0.00475771]
[1721723743160,0.298251,67058.0,67047.0,0.14701991]
[1721723743315,0.149144,67049.0,67048.0,0.00475771]
[1721723743522,0.447449,67047.0,67046.0,0.00475771]
[1721723743739,0.07348942,67048.0,67039.0,0.102794]
[1721723743740,0.447493,67040.0,67039.0,0.102794]
[1721723743945,0.27,67043.0,67035.0,0.00475771]
[1721723744147,0.27,67043.0,67032.0,0.00475771]
[1721723744148,0.14918,67033.0,67032.0,0.00475771]
[1721723744475,0.44754,67033.0,67032.0,0.00475771]
[1721723744669,0.37183842,67036.0,67032.0,0.00475771]
[1721723744823,0.3352,67043.0,67033.0,0.002794]
[1721723745040,0.3352,67043.0,67032.0,0.00475771]
[1721723745041,0.298333,67039.0,67032.0,0.00475771]
[1721723745240,0.149174,67036.0,67032.0,0.00475771]
[1721723745467,0.298333,67039.0,67033.0,0.002794]
[1721723745669,0.149178,67034.0,67033.0,0.002794]
[1721723745871,0.447534,67034.0,67033.0,0.002794]
[1721723746069,0.14918,67033.0,67032.0,0.00475771]
[1721723746246,0.298356,67034.0,67032.0,0.00475771]
[1721723746247,0.149179,67034.0,67032.0,0.00475771]
[1721723746449,0.149172,67037.0,67033.0,0.002794]
[1721723746659,0.149172,67037.0,67032.0,0.15393971]
[1721723746660,0.149165,67040.0,67036.0,0.002794]
[1721723746860,0.149171,67037.0,67036.0,0.002794]
[1721723747087,0.27,67043.0,67027.0,0.00755171]
[1721723747286,0.14918,67033.0,67032.0,0.002794]
[1721723747522,0.44754,67033.0,67032.0,0.002794]
[1721723747710,0.14918,67033.0,67032.0,0.002794]
[1721723747922,0.298344,67037.0,67032.0,0.002794]
[1721723748123,0.149174,67036.0,67032.0,0.002794]
[1721723748411,0.149174,67036.0,67025.0,0.747595]
[1721723748412,0.4696,67047.0,67040.0,0.00475771]
[1721723748583,0.4696,67047.0,67040.0,0.30094162]
[1721723748584,0.149153,67045.0,67040.0,0.30094162]
[1721723748835,0.149155,67044.0,67040.0,0.15177762]
[1721723749005,0.149155,67044.0,67034.0,0.298353]
[1721723749006,0.4696,67047.0,67043.0,0.15391471]
[1721723749205,0.13768942,67056.0,67043.0,0.15391471]
[1721723749206,0.149147,67048.0,67043.0,0.30093462]
[1721723749413,0.4696,67057.0,67043.0,0.30093462]
[1721723749414,0.298264,67055.0,67049.0,0.00475771]
[1721723749616,0.298258,67056.0,67051.0,0.00475771]
[1721723749819,0.149134,67054.0,67051.0,0.00475771]
[1721723750037,0.4696,67057.0,67051.0,0.00475771]
[1721723750197,0.149131,67055.0,67051.0,0.00475771]
[1721723750407,0.298227,67063.0,67061.0,0.00475771]
[1721723750674,0.149122,67059.0,67058.0,0.00475771]
[1721723750789,0.149122,67060.0,67058.0,0.00475771]
[1721723750998,0.27,67067.0,67058.0,0.00475771]
[1721723750999,0.298231,67062.0,67058.0,0.00475771]
[1721723751285,0.298231,67062.0,67052.0,0.14701991]
[1721723751286,0.298252,67058.0,67053.0,0.00475771]
[1721723751489,0.149132,67055.0,67054.0,0.14701991]
[1721723751691,0.152128,67057.0,67054.0,0.14701991]
[1721723751892,0.298244,67059.0,67054.0,0.14701991]
[1721723751893,0.298245,67059.0,67054.0,0.14701991]
[1721723752096,0.37172842,67061.0,67054.0,0.14701991]
[1721723752097,0.149129,67056.0,67054.0,0.14701991]
[1721723752303,0.4474,67054.0,67053.0,0.00475771]
[1721723752507,0.4474,67054.0,67053.0,0.14701991]
[1721723752716,0.27,67059.0,67050.0,0.00017953]
[1721723752717,0.44742,67051.0,67050.0,0.00017953]
[1721723752915,1.08918942,67051.0,67050.0,0.00017953]
[1721723753325,1.38746942,67051.0,67050.0,0.00017953]
[1721723754340,1.08918942,67051.0,67050.0,0.00017953]
[1721723754542,1.0157,67051.0,67050.0,0.00017953]
[1721723754821,1.0157,67051.0,67050.0,0.00417953]
[1721723754958,0.002,67056.0,67053.0,0.00475771]
[1721723755169,0.149131,67055.0,67053.0,0.00475771]
[1721723755372,0.002,67056.0,67053.0,0.00475771]
[1721723755661,0.149129,67056.0,67053.0,0.00475771]
[1721723756077,0.46945002,67063.0,67053.0,0.15177762]
[1721723756281,0.298247,67059.0,67054.0,0.1]
[1721723756458,0.149129,67056.0,67054.0,0.1]
[1721723757094,0.298251,67058.0,67054.0,0.1]
[1721723757271,0.37172342,67062.0,67054.0,0.1]
[1721723757272,0.149131,67056.0,67054.0,0.1]
[1721723757653,0.07348942,67055.0,67053.0,0.14701991]
[1721723757848,0.07348942,67055.0,67050.0,0.14437953]
[1721723757849,0.14914,67051.0,67050.0,0.00593724]
[1721723758024,0.149137,67053.0,67050.0,0.00493724]
[1721723758175,0.27,67059.0,67050.0,0.00493724]
[1721723758176,0.298262,67055.0,67050.0,0.00493724]
[1721723758377,0.149136,67053.0,67050.0,0.00493724]
[1721723758989,0.002,67056.0,67050.0,0.15407924]
[1721723759207,0.149134,67054.0,67050.0,0.00493724]
[1721723759632,0.149135,67053.0,67050.0,0.00493724]
[1721723759832,0.002,67056.0,67053.0,0.00475771]
[1721723759987,0.002,67056.0,67053.0,0.15177762]
[1721723760203,0.27,67059.0,67053.0,0.15177762]
[1721723760401,0.14913,67056.0,67053.0,0.15177762]
[1721723761293,0.15113,67056.0,67053.0,0.15177762]
[1721723761540,0.002,67056.0,67053.0,0.15177762]
[1721723761739,0.15113,67056.0,67053.0,0.15177762]
[1721723762373,0.149132,67055.0,67053.0,0.15177762]
[1721723762579,0.149133,67054.0,67053.0,0.15177762]
[1721723762789,0.151129,67056.0,67053.0,0.15177762]
[1721723762990,0.15113,67056.0,67053.0,0.15177762]
[1721723763197,0.15113,67056.0,67050.0,0.00493724]
[1721723763198,0.07348942,67054.0,67050.0,0.00493724]
[1721723763401,0.44742,67051.0,67050.0,0.00017953]
[1721723763607,1.04398,67051.0,67050.0,0.00017953]
[1721723763990,1.45061734,67051.0,67050.0,0.00017953]
[1721723764463,1.50061734,67051.0,67050.0,0.00117953]
[1721723764840,1.70295963,67051.0,67050.0,0.00017953]
[1721723765186,1.8314651,67051.0,67050.0,0.00117953]
[1721723765403,1.8214651,67051.0,67050.0,0.00017953]
[1721723766157,1.7214651,67051.0,67050.0,0.00017953]
[1721723766568,1.7714651,67051.0,67050.0,0.00017953]
[1721723767409,1.22084281,67051.0,67050.0,0.00017953]
[1721723767612,1.28084281,67051.0,67050.0,0.00117953]
[1721723768027,1.8314651,67051.0,67050.0,0.00117953]
[1721723768238,1.7814651,67051.0,67050.0,0.00117953]
[1721723768444,1.8314651,67051.0,67050.0,0.00117953]
[1721723768646,1.4831851,67051.0,67050.0,0.00117953]
[1721723768851,1.4844128,67051.0,67050.0,0.00117953]
[1721723769055,2.37495536,67051.0,67050.0,0.00117953]
[1721723769259,2.37495536,67051.0,67025.0,0.00475771]
[1721723769260,0.149195,67026.0,67025.0,0.00475771]
[1721723769663,0.149195,67026.0,67025.0,0.10475771]
[1721723769839,0.149193,67027.0,67025.0,0.10475771]
[1721723770041,0.447586,67026.0,67025.0,0.1]
[1721723770645,0.298391,67026.0,67023.0,0.00475771]
[1721723770847,0.149202,67023.0,67022.0,0.00475771]
[1721723771052,0.149205,67022.0,67021.0,0.00755171]
[1721723771252,0.149205,67022.0,67021.0,0.1]
[1721723771495,0.447614,67022.0,67021.0,0.1]
[1721723771698,0.298413,67021.0,67017.0,0.00475771]
[1721723771908,0.2159,67032.0,67023.0,0.006]
[1721723771909,0.2984,67024.0,67023.0,0.006]
[1721723772071,0.2984,67024.0,67018.0,0.14701991]
[1721723772072,0.92495256,67024.0,67018.0,0.14701991]
[1721723772266,0.149222,67014.0,67013.0,0.0759]
[1721723772569,0.149222,67014.0,67013.0,0.22291991]
[1721723772953,0.001,67022.0,67013.0,0.22291991]
[1721723772954,0.298418,67020.0,67015.0,0.00475771]
[1721723773160,0.298418,67020.0,67014.0,0.15177762]
[1721723773161,0.149219,67016.0,67014.0,0.15177762]
[1721723773332,0.001,67022.0,67013.0,0.0759]
[1721723773333,0.447667,67014.0,67013.0,0.0759]
[1721723773551,0.298446,67014.0,67008.0,0.06878171]
[1721723773675,0.447693,67010.0,67009.0,0.002794]
[1721723773874,0.4477,67009.0,67008.0,0.000924]
[1721723774106,0.149233,67009.0,67008.0,0.000924]
[1721723774316,0.4477,67009.0,67008.0,0.000924]
[1721723774517,0.149227,67012.0,67008.0,0.00568171]
[1721723774725,0.54995002,67023.0,67008.0,0.00568171]
[1721723774726,0.149233,67009.0,67008.0,0.00568171]
[1721723774929,0.07348942,67022.0,67008.0,0.00568171]
[1721723774930,0.149227,67012.0,67008.0,0.00568171]
[1721723775129,0.149229,67011.0,67008.0,0.00568171]
[1721723775432,0.298448,67014.0,67008.0,0.01068171]
[1721723775433,0.001,67009.0,67008.0,0.01068171]
[1721723775915,0.001,67009.0,67008.0,0.15991671]
[1721723776378,0.001,67009.0,67008.0,0.01068171]
[1721723776563,0.150233,67009.0,67008.0,0.005924]
[1721723776699,0.4487,67009.0,67008.0,0.005924]
[1721723776916,0.747167,67009.0,67008.0,0.005924]
[1721723777602,1.045634,67009.0,67008.0,0.005924]
[1721723778973,1.191234,67009.0,67008.0,0.005924]
[1721723779117,1.191234,67009.0,67008.0,0.009924]
[1721723780455,1.190234,67009.0,67008.0,0.000924]
[1721723780859,1.190234,67009.0,67008.0,0.003924]
[1721723781555,1.194234,67009.0,67008.0,0.003924]
[1721723781807,1.194234,67009.0,67008.0,0.000924]
[1721723781808,1.488701,67009.0,67008.0,0.000924]
[1721723782044,1.500701,67009.0,67008.0,0.000924]
[1721723782281,1.202234,67009.0,67008.0,0.000924]
[1721723782833,0.161233,67009.0,67008.0,0.000924]
[1721723783004,0.012,67009.0,67008.0,0.000924]
[1721723783241,0.161233,67009.0,67008.0,0.000924]
[1721723783706,0.015,67009.0,67008.0,0.08793403]
[1721723783951,0.015,67009.0,67008.0,0.98113094]
[1721723784193,0.298397,67025.0,67018.0,0.15396971]
[1721723784422,0.298397,67025.0,67012.0,0.298452]
[1721723784423,0.447633,67019.0,67012.0,0.15398371]
[1721723784647,0.447633,67019.0,67013.0,0.14701991]
[1721723784648,0.298422,67019.0,67013.0,0.14701991]
[1721723784871,0.149216,67017.0,67013.0,0.14701991]
[1721723785098,0.07348942,67022.0,67010.0,0.00475771]
[1721723785333,0.298427,67018.0,67010.0,0.00475771]
[1721723785551,0.149221,67015.0,67011.0,0.149229]
[1721723785770,0.149221,67015.0,67010.0,0.15398771]
[1721723786015,0.298416,67021.0,67015.0,0.15397671]
[1721723786241,0.298416,67021.0,67016.0,0.002794]
[1721723786461,0.149215,67018.0,67015.0,0.00475771]
[1721723786738,0.149213,67018.0,67015.0,0.00475771]
[1721723786961,0.149215,67017.0,67015.0,0.00475771]
[1721723787191,0.298436,67016.0,67015.0,0.00475771]
[1721723787423,0.149214,67018.0,67015.0,0.00475771]
[1721723787652,0.149217,67017.0,67015.0,0.00475771]
[1721723788336,0.149208,67021.0,67015.0,0.15397571]
[1721723788562,0.149217,67017.0,67015.0,0.00675771]
[1721723788788,0.149213,67018.0,67015.0,0.00475771]
[1721723789023,0.46945002,67023.0,67022.0,0.45237071]
[1721723789396,1.38627253,67037.0,67022.0,0.45018662]
[1721723789397,0.29836,67033.0,67022.0,0.45018662]
[1721723789636,0.46945002,67035.0,67025.0,0.00475771]
[1721723789637,0.298381,67029.0,67025.0,0.00475771]
[1721723789874,0.298381,67029.0,67023.0,0.14981391]
[1721723789875,0.298389,67027.0,67023.0,0.14701991]
[1721723790106,0.298379,67029.0,67025.0,0.00475771]
[1721723790350,0.298379,67029.0,67023.0,0.14701991]
[1721723790351,0.298383,67028.0,67023.0,0.14701991]
[1721723790602,0.149196,67026.0,67024.0,0.002794]
[1721723790830,0.149196,67026.0,67020.0,0.149208]
[1721723790831,0.15292815,67026.0,67020.0,0.149208]
[1721723791040,0.149199,67025.0,67021.0,0.14701991]
[1721723791246,0.07348942,67022.0,67014.0,0.00475771]
[1721723791457,0.298421,67020.0,67014.0,0.14701991]
[1721723791667,0.298421,67020.0,67015.0,0.002794]
[1721723791668,0.149219,67016.0,67015.0,0.002794]
[1721723791874,0.149218,67016.0,67015.0,0.002794]
[1721723792078,0.298425,67019.0,67013.0,0.002794]
[1721723792284,0.149218,67016.0,67013.0,0.002794]
[1721723792489,0.298418,67021.0,67012.0,0.00475771]
[1721723792698,0.298418,67021.0,67013.0,0.152017]
[1721723792699,0.149214,67018.0,67013.0,0.152017]
[1721723792899,0.14922,67015.0,67012.0,0.00475771]
[1721723793255,0.298412,67022.0,67012.0,0.00475771]
[1721723793464,0.149224,67013.0,67012.0,0.00475771]
[1721723793666,0.13478942,67023.0,67012.0,0.00475771]
[1721723793667,0.298437,67016.0,67012.0,0.00475771]
[1721723793867,0.00373085,67022.0,67013.0,0.002794]
[1721723793868,0.149223,67014.0,67013.0,0.002794]
[1721723794065,0.149224,67013.0,67012.0,0.00475771]
[1721723794511,0.514297,67025.0,67012.0,0.00475771]
[1721723794711,0.001,67016.0,67015.0,0.006]
[1721723795116,0.298384,67028.0,67020.0,0.00475771]
[1721723795338,0.2159,67032.0,67024.0,0.00475771]
[1721723795339,0.298387,67027.0,67024.0,0.00475771]
[1721723795663,0.447594,67025.0,67024.0,0.00475771]
[1721723795863,0.149204,67023.0,67021.0,0.21271991]
[1721723796066,0.298396,67025.0,67021.0,0.21271991]
[1721723796269,0.149201,67024.0,67021.0,0.21271991]
[1721723797099,0.07348942,67023.0,67019.0,0.00475771]
[1721723797306,0.066,67021.0,67014.0,0.00475771]
[1721723797677,0.298415,67021.0,67015.0,0.152012]
[1721723797879,0.298415,67021.0,67015.0,0.002794]
[1721723797880,0.149212,67019.0,67015.0,0.002794]
[1721723798083,0.298403,67024.0,67015.0,0.002794]
[1721723798285,0.149217,67017.0,67015.0,0.002794]
[1721723798469,0.149216,67017.0,67015.0,0.002794]
[1721723798671,0.05,67034.0,67015.0,0.002794]
[1721723798672,0.149218,67016.0,67015.0,0.002794]
[1721723799018,0.149218,67016.0,67014.0,0.00475771]
[1721723799019,0.149219,67016.0,67014.0,0.00475771]
[1721723799250,0.298429,67018.0,67014.0,0.00475771]
[1721723799251,0.14922,67015.0,67014.0,0.00475771]
[1721723799644,0.14922,67015.0,67012.0,0.002794]
[1721723799857,0.14922,67015.0,67012.0,0.14981391]
[1721723800066,0.299423,67019.0,67012.0,0.002794]
[1721723800067,0.07348942,67017.0,67012.0,0.002794]
[1721723800285,0.149233,67009.0,67008.0,0.00087632]
[1721723800724,0.4477,67009.0,67008.0,0.00087632]
[1721723801198,0.746167,67009.0,67008.0,0.00087632]
[1721723801436,0.81477742,67009.0,67008.0,0.00087632]
[1721723801689,0.92880691,67009.0,67008.0,0.00087632]
[1721723801886,1.22685757,67009.0,67008.0,0.00087632]
[1721723802514,1.22785757,67009.0,67008.0,0.00687632]
[1721723802652,1.22786347,67009.0,67008.0,0.00687632]
[1721723803049,1.22786347,67009.0,67008.0,0.00787632]
[1721723803437,1.22686347,67009.0,67008.0,0.00087632]
[1721723803848,1.22686347,67009.0,67008.0,0.00387632]
[1721723804049,1.28906347,67009.0,67008.0,0.00387632]
[1721723804587,1.33906347,67009.0,67008.0,0.00387632]
[1721723804992,1.33906347,67009.0,67008.0,0.00087632]
[1721723805189,1.28906347,67009.0,67008.0,0.00087632]
[1721723805389,1.29006347,67009.0,67008.0,0.00087632]
[1721723805834,1.28974699,67009.0,67008.0,0.00087632]
[1721723806231,1.34484023,67009.0,67008.0,0.00087632]
[1721723806432,1.28974699,67009.0,67008.0,0.00087632]
[1721723807064,1.33974699,67009.0,67008.0,0.00087632]
[1721723807303,1.28974699,67009.0,67008.0,0.00087632]
[1721723807476,1.33974699,67009.0,67008.0,0.00087632]
[1721723808042,1.28974699,67009.0,67008.0,0.00087632]
[1721723808689,1.02721142,67009.0,67008.0,0.00087632]
[1721723808887,0.92773206,67009.0,67008.0,0.00087632]
[1721723809737,1.22614509,67009.0,67008.0,0.00087632]
[1721723811634,1.22514509,67009.0,67008.0,0.00087632]
[1721723811894,0.81472345,67009.0,67008.0,0.00087632]
[1721723812092,0.62821645,67009.0,67008.0,0.00087632]
[1721723812293,0.92768345,67009.0,67008.0,0.00587632]
[1721723812490,0.92768345,67009.0,67008.0,0.00087632]
[1721723812491,1.22515045,67009.0,67008.0,0.00087632]
[1721723812858,0.62821645,67009.0,67008.0,0.00087632]
[1721723813045,0.62921645,67009.0,67008.0,0.00087632]
[1721723813666,0.32974945,67009.0,67008.0,0.00087632]
[1721723814339,0.62821645,67009.0,67008.0,0.00087632]
[1721723814550,0.06861042,67009.0,67008.0,0.00087632]
[1721723815197,0.149229,67011.0,67008.0,0.00087632]
[1721723815198,0.149229,67011.0,67009.0,0.002794]
[1721723815407,0.28287996,67018.0,67012.0,0.00475771]
[1721723815408,0.0446533,67015.0,67012.0,0.00475771]
[1721723815611,0.06697996,67017.0,67012.0,0.00475771]
[1721723815612,0.06863208,67014.0,67012.0,0.00475771]
[1721723815822,0.06863208,67013.0,67012.0,0.00475771]
[1721723816031,0.21785008,67016.0,67012.0,0.15398371]
[1721723816236,0.06863208,67015.0,67012.0,0.15398371]
[1721723816438,0.06863208,67015.0,67012.0,0.00475771]
[1721723816636,0.07063208,67015.0,67012.0,0.00475771]
[1721723816775,0.21785508,67014.0,67012.0,0.00475771]
[1721723816999,0.06863208,67013.0,67012.0,0.00475771]
[1721723817208,0.21785608,67013.0,67012.0,0.00475771]
[1721723818041,0.06863208,67013.0,67012.0,0.00475771]
[1721723818243,0.21785608,67013.0,67012.0,0.00475771]
[1721723818669,0.06863208,67013.0,67012.0,0.00475771]
[1721723819337,0.21785608,67013.0,67012.0,0.00475771]
[1721723819553,0.51630508,67013.0,67012.0,0.00475771]
[1721723820173,0.41175772,67013.0,67010.0,0.14701991]
[1721723820374,0.41175772,67013.0,67009.0,0.0613]
[1721723820375,0.149231,67010.0,67009.0,0.0613]
[1721723820963,0.04467664,67013.0,67009.0,0.0613]
[1721723821150,0.21785119,67012.0,67009.0,0.0613]
[1721723821371,0.14923,67011.0,67009.0,0.0613]
[1721723821526,0.298453,67013.0,67009.0,0.0613]
[1721723821527,0.34312964,67013.0,67009.0,0.0613]
[1721723821732,0.149228,67012.0,67009.0,0.0613]
[1721723822138,0.149229,67011.0,67009.0,0.0613]
[1721723822511,0.19390764,67010.0,67009.0,0.0613]
[1721723822717,0.06701496,67012.0,67011.0,0.00475771]
[1721723822718,0.04467664,67012.0,67011.0,0.00475771]
[1721723822917,0.13402993,67024.0,67011.0,0.00475771]
[1721723822918,0.04467664,67017.0,67014.0,0.298445]
[1721723823206,0.04467664,67018.0,67015.0,0.14701991]
[1721723823516,0.04467357,67019.0,67018.0,0.149213]
[1721723823718,0.04467357,67019.0,67018.0,0.89784462]
[1721723823918,0.58113395,67021.0,67020.0,0.149209]
[1721723824067,0.51412359,67021.0,67020.0,0.15396671]